Cogmind - Beta 13 @@@ ROGUE MODE // 2024.03.21 @ 02:49:35 Player: H3-RMN Result: Destroyed by G-47 Trooper with Particle Gun Performance ------------- Evolutions (2) 1000 Regions Visited (7) 1400 Robots Destroyed (102) 510 Value Destroyed (4081) 4081 Prototype IDs (30) 600 Alien Tech Used (0) 0 Bonus (1948) 1948 TOTAL SCORE: 9539 Bonus ------- High Alert Combat Kills 871 Follower Combat Kills 116 Entered Garrisons 200 Used RIF Installer 500 Aligned with FarCom 300 Friendly Fire -39 Cogmind --------- Core Integrity 0/550 Matter 119/300 Energy 280/280 System Corruption 5% Temperature Warm (138) Movement Treading (325) Ox2 Location -8/Materials Parts ------- > --- POWER (1) -------- Heavy Ion Engine > --- PROPULSION (3) --- Light Treads Armored Treads > --- UTILITY (5) ------ Huge Storage Unit Trap Scanner Hardened Medium Armor Plating Hardened Medium Armor Plating Hardlight Generator > --- WEAPON (2) ------- High-powered Shotgun Improved Grenade Launcher > --- INVENTORY (25) --- Light Deuterium Engine Light Treads Surge Thruster Surge Thruster Surge Thruster Improved Heat Sink Compact Matter Pod (0) Weight Redist. System Transport Network Coupler Improved Utility Shielding Hardened Medium Armor Plating Hardened Medium Armor Plating Hardened Medium Armor Plating Hacking Suite System Shield Relay Coupler [NC] (28) Relay Coupler [NC] (31) Improved Trap Extractor (5/6 Shock) Improved Trap Extractor (2/6 Explosive) Trap Reconfigurator Heavy Assault Rifle Heavy Assault Rifle Minigun Datajack Spear Peak State ------------ > --- POWER ------------ Light Nuclear Core > --- PROPULSION ------- Light Treads Armored Treads Improved Flight Unit > --- UTILITY ---------- Improved Heat Sink Huge Storage Unit Salvage Targeting Computer Hardened Medium Armor Plating Hardened Medium Armor Plating > --- WEAPON ----------- Heavy Assault Rifle Flak Cannon > --- INVENTORY -------- Light Deuterium Engine Light Treads Surge Thruster Surge Thruster Surge Thruster Compact Matter Pod Weight Redist. System Transport Network Coupler Improved Utility Shielding Hardened Medium Armor Plating Hardened Medium Armor Plating Hardened Medium Armor Plating Hacking Suite System Shield Relay Coupler [NC] Relay Coupler [NC] High-powered Tractor Beam Improved Trap Extractor Improved Trap Extractor Trap Reconfigurator Heavy Assault Rifle Heavy Assault Rifle Improved Grenade Launcher Datajack Spear [Rating: 34] Favorites ----------- Power Light Nuclear Core Engine Improved Ion Engine Power Core Light Nuclear Core Propulsion Light Treads Treads Light Treads Wheel Wheel Flight Unit Flight Unit Utility Huge Storage Unit Device Improved Heat Sink Storage Huge Storage Unit Processor Salvage Targeting Computer Hackware Hacking Suite Protection Hardened Light Armor Plating Weapon Heavy Assault Rifle Energy Gun Small Laser Ballistic Gun Heavy Assault Rifle Ballistic Cannon Flak Cannon Launcher Improved Grenade Launcher Impact Weapon Great Maul Slashing Weapon Axe Piercing Weapon Spear Special Melee Weapon Datajack Build | -11 -10 -10 -10 -9 -8 -8 -8 ------- Run | Yrd Mat Min Exi Min Mat Gar Mat Slots Evolved 4 | . . . . . 4 . . Power . | . . . . . . . . Propulsion 1 | . . . . . 1 . . Utility 3 | . . . . . 3 . . Weapon . | . . . . . . . . Parts Attached 153 | 7 16 . . . 69 41 20 Power 13 | 1 2 . . . 4 4 2 Engine 10 | 1 2 . . . 3 2 2 Core 3 | . . . . . 1 2 . Reactor . | . . . . . . . . Propulsion 39 | 2 3 . . . 14 15 5 Treads 26 | 2 1 . . . 4 15 4 Leg . | . . . . . . . . Wheel 1 | . . . . . 1 . . Hover . | . . . . . . . . Flight 12 | . 2 . . . 9 . 1 Utility 53 | 2 3 . . . 34 7 7 Device 19 | 1 . . . . 14 1 3 Storage 6 | 1 2 . . . 3 . . Processor 2 | . . . . . 2 . . Hackware 2 | . . . . . 2 . . Protection 24 | . 1 . . . 13 6 4 Artifact . | . . . . . . . . Weapon 48 | 2 8 . . . 17 15 6 Energy Gun 2 | 1 1 . . . . . . Energy Cannon . | . . . . . . . . Ballistic Gun 23 | 1 5 . . . 5 9 3 Ballistic Cannon 2 | . . . . . . 1 1 Launcher 8 | . 2 . . . 2 3 1 Special Weapon . | . . . . . . . . Impact Weapon 1 | . . . . . 1 . . Slashing Weapon 4 | . . . . . 4 . . Piercing Weapon 4 | . . . . . 2 2 . Special Melee Weapon 4 | . . . . . 3 . 1 Unidentified Prototypes 2 | . . . . . . . 2 Parts Lost 18 | . . . . . 8 9 1 Power 2 | . . . . . 1 1 . Propulsion 8 | . . . . . 4 3 1 Utility 5 | . . . . . 1 4 . Weapon 3 | . . . . . 2 1 . Highest Loss Streak 8 | . . . . . 3 8 1 To Critical Strikes . | . . . . . . . . Average Slot Usage (%) 95 | . 99 85 57 57 93 99 99 Engine 5 | . 13 . . . 5 5 5 Core 2 | . . . . . 2 3 3 Treads 20 | . 27 . . . 13 26 26 Flight 5 | . . 28 28 28 11 . . Device 8 | . 11 . . . 9 6 15 Storage 9 | . 14 14 14 14 9 9 9 Processor 4 | . . . . . 1 9 5 Hackware 2 | . . . . . 6 . . Protection 15 | . 2 14 14 14 15 20 15 Ballistic Gun 11 | . 23 28 . . 6 13 11 Ballistic Cannon 2 | . . . . . . 3 6 Slashing Weapon 1 | . . . . . 3 . . Piercing Weapon 1 | . . . . . 3 . . Naked Turns . | . . . . . . . . Heaviest Build 120 | 13 29 8 8 6 109 112 120 Greatest Support 66 | 40 40 8 8 8 66 60 60 Greatest Overweight (x) 2 | 1 . . . . 2 2 2 Average Overweight (x) . | . . . . . . 1 1 Largest Inventory Capacity 25 | 8 15 8 8 8 25 25 25 Average Capacity 18 | 7 9 8 8 8 14 25 25 Most Carried 25 | 5 8 8 8 8 25 25 25 Average Carried 18 | 3 7 7 7 8 13 24 24 Final Capacity 25 | 8 8 8 8 8 25 25 25 Final Carried 25 | 5 8 8 8 8 25 25 25 Class Distribution -------------------- 55% | Scavenger-Mutant 21% | Mutant 8% | Trapper-Mutant 8% | Hacker-Sprinter 3% | Scavenger-Sprinter Dominant Class ---------------- Mutant | -10/Materials Mutant | -10/Mines Mutant | -10/Exiles Mutant | -9/Mines Scavenger-Mutant | -8/Materials Scavenger-Mutant | -8/Garrison Trapper-Mutant | -8/Materials Resources | -11 -10 -10 -10 -9 -8 -8 -8 ----------- Run | Yrd Mat Min Exi Min Mat Gar Mat Matter Collected 3352 | 276 158 74 172 . 1038 985 649 Remotely . | . . . . . . . . Salvage Created 3350 | 84 184 . . . 1091 1244 747 Parts 225 | 8 18 . . . 93 65 41 Haulers Intercepted 6 | . . . . . 3 . 3 Recyclers Shooed 2 | . 1 . . . . . 1 Parts Field Recycled . | . . . . . . . . Retrieved Matter . | . . . . . . . . Parts Self-Destructed . | . . . . . . . . Prevented . | . . . . . . . . Kills | -11 -10 -10 -10 -9 -8 -8 -8 ------- Run | Yrd Mat Min Exi Min Mat Gar Mat Combat Hostiles Destroyed 77 | . 9 . . . 22 30 16 Melee 11 | . . . . . 10 1 . Guns 31 | . 4 . . . 2 21 4 Cannons 13 | . . . . . . 3 10 AOE 21 | . 5 . . . 9 5 2 Classes Destroyed 16 | 2 3 . . . 6 3 2 Worker 5 | . . . . . 2 . 3 Builder 1 | . . . . . 1 . . Tunneler 2 | 1 . . . . 1 . . Hauler 6 | . . . . . 3 . 3 Recycler 4 | 1 . . . . 2 . 1 Mechanic 1 | . . . . . . . 1 Operator 1 | . 1 . . . . . . Watcher 5 | . . . . . 4 . 1 Swarmer 22 | . 6 . . . 8 3 5 Cutter 3 | . . . . . 3 . . Saboteur 1 | . . . . . . 1 . Grunt 29 | . 3 . . . 5 13 8 Brawler 2 | . . . . . . 1 1 Duelist 1 | . . . . . . . 1 Sentry 17 | . . . . . 6 10 1 Specialist 2 | . . . . . . 2 . Best Kill Streak 9 | 1 3 . . . 9 3 8 Combat Bots Only 7 | . 3 . . . 7 3 7 Max Kills in Single Turn 3 | 1 3 . . . 3 2 3 Gunslinging . | . . . . . . . . Exploded 3 | . 3 . . . 3 2 1 Melee 1 | . . . . . 1 1 . Uniques/NPCs Destroyed . | . . . . . . . . Combat | -11 -10 -10 -10 -9 -8 -8 -8 -------- Run | Yrd Mat Min Exi Min Mat Gar Mat Hostile Shots Fired 433 | . 23 20 . . 68 235 87 Missed 122 | . 5 9 . . 34 50 24 Damage Taken 4568 | . 242 170 . . 601 2612 943 Core 666 | . 8 105 . . 123 333 97 Absorbed by Shields 328 | . . . . . . 272 56 Redirected to Shielding 83 | . 2 25 . . 56 . . Regen/Repaired (Parts) 209 | . 12 . . . 118 . 79 Core Remaining (%) 77 | 100 . . . 54 . . . Volleys Fired 210 | 7 20 . . . 23 101 59 Largest 2 | 2 2 . . . 2 2 2 Hottest 67 | 60 50 . . . 43 67 67 Shots Fired 380 | 14 36 . . . 33 183 114 Gun 296 | 14 33 . . . 21 158 70 Cannon 61 | . . . . . . 21 40 Launcher 23 | . 3 . . . 12 4 4 Special . | . . . . . . . . Kinetic 349 | 7 32 . . . 21 179 110 Thermal 8 | 7 1 . . . . . . Explosive 23 | . 3 . . . 12 4 4 Electromagnetic . | . . . . . . . . Robot Hit Streak 13 | 3 13 . . . 7 12 8 Robot Miss Streak 5 | 2 2 . . . 4 4 5 Penetration Max . | . . . . . . . . Secondary Targets 5 | . . . . . . 5 . Max Gunslinging Chain 1 | . . . . . . 1 . Shots Hit Robots 309 | 7 28 . . . 60 129 85 Core Hits 205 | 4 15 . . . 44 73 69 Critical Kills . | . . . . . . . . Critical Parts Destroyed 2 | . . . . . . 1 1 Critical Strikes 7 | . . . . . 5 1 1 Destroy 2 | . . . . . . 1 1 Sever 5 | . . . . . 5 . . Melee Attacks 80 | . . . . . 72 6 2 Impact 1 | . . . . . 1 . . Slashing 63 | . . . . . 63 . . Piercing 14 | . . . . . 8 6 . Sneak Attacks 12 | . . . . . 9 1 2 Combat Hostiles 2 | . . . . . 1 1 . Follow-up Attacks . | . . . . . . . . Damage Inflicted 8013 | 69 443 . . . 2831 2689 1981 Guns 3041 | 69 240 . . . 153 1785 794 Cannons 938 | . . . . . . 288 650 Explosions 2058 | . 203 . . . 828 498 529 Melee 1968 | . . . . . 1850 118 . Ramming 8 | . . . . . . . 8 Kinetic 3911 | 14 227 . . . 153 2073 1444 Thermal 68 | 55 13 . . . . . . Explosive 2058 | . 203 . . . 828 498 529 Electromagnetic . | . . . . . . . . Impact . | . . . . . . . . Slashing 1575 | . . . . . 1575 . . Piercing 393 | . . . . . 275 118 . Highest Corruption 5 | . 4 4 4 4 . . 5 Average Corruption 4 | . 3 4 4 4 . . 5 Corruption Purged . | . . . . . . . . Corruption Blocked . | . . . . . . . . Effects 37 | . 5 7 2 3 . . 20 Message Errors 10 | . 3 1 . . . . 6 Matter Fused 11 | . 1 3 . 2 . . 5 Heat Flow Errors 5 | . . 1 . . . . 4 Energy Discharges 6 | . . 1 2 1 . . 2 Data Loss (major) 2 | . . . . . . . 2 Misfires 1 | . . . . . . . 1 Alerts 2 | . 1 1 . . . . . Overload Shots . | . . . . . . . . Overflow Damage 169 | . . . . . 117 . 52 Projectiles . | . . . . . . . . Explosions 73 | . . . . . 21 . 52 Melee 96 | . . . . . 96 . . Knockbacks 33 | . . . . . . 16 17 Impact . | . . . . . . . . Kinetic 31 | . . . . . . 15 16 Secondary 2 | . . . . . . 1 1 Self-Inflicted Damage 232 | . 69 . . . 59 54 50 Shots 8 | . 3 . . . 2 1 2 Rammed 1 | . . . . . . . 1 Targets Rammed 1 | . . . . . . . 1 Kicked . | . . . . . . . . Crushed . | . . . . . . . . Highest Temperature 343 | 40 12 105 . . 8 343 265 Average Temperature 73 | 17 7 60 . . 5 77 86 Received Heat Transfer 1797 | . 48 6 . . 126 1199 418 Effects 3 | . . . . . . 3 . Shutdowns 1 | . . . . . . 1 . Damage (minor) 2 | . . . . . . 2 . Siege Activations . | . . . . . . . . Robots Corrupted . | . . . . . . . . Combat Hostiles . | . . . . . . . . Parts Fried . | . . . . . . . . Impact Corruptions . | . . . . . . . . Robots Melted . | . . . . . . . . Combat Hostiles . | . . . . . . . . Parts Melted . | . . . . . . . . Heat Transferred 162 | 125 37 . . . . . . Parts Sabotaged 2 | . . . . . . 2 . Parts Stolen . | . . . . . . . . Parts Stripped . | . . . . . . . . Power Chain Reactions . | . . . . . . . . Alert | -11 -10 -10 -10 -9 -8 -8 -8 ------- Run | Yrd Mat Min Exi Min Mat Gar Mat Peak Influence 1952 | 10 203 93 . . 520 1952 1198 Initial 951 | . 6 78 . . . 169 951 Average 622 | 4 110 80 . . 303 987 1054 Maximum Alert Level 5 | . 1 . . . 2 5 4 Low Security (%) 20 | 100 94 100 . 100 9 5 . Level 1 30 | . 5 . . . 79 6 . Level 2 10 | . . . . . 10 18 . Level 3 22 | . . . . . . 36 62 Level 4 11 | . . . . . . 16 37 Level 5 5 | . . . . . . 15 . High Security . | . . . . . . . . Max Security . | . . . . . . . . Squads Dispatched 11 | . 2 . . . 5 . 4 Investigation 3 | . 1 . . . 1 . 1 Extermination . | . . . . . . . . Reinforcement 7 | . 1 . . . 4 . 2 Assault 1 | . . . . . . . 1 Garrison . | . . . . . . . . Intercept . | . . . . . . . . Searches Triggered . | . . . . . . . . Construction Impeded 1 | . . . . . 1 . . Haulers Reinforced . | . . . . . . . . Active Scanning Responses . | . . . . . . . . Cargo Convoy Interrupts . | . . . . . . . . Stealth | -11 -10 -10 -10 -9 -8 -8 -8 --------- Run | Yrd Mat Min Exi Min Mat Gar Mat Distress Signals 9 | . 2 . . . 6 . 1 Communications Jammed . | . . . . . . . . Distress Signals . | . . . . . . . . Times Spotted 157 | . 11 26 . . 45 41 34 Peak Tracking Total 16 | . 4 16 . . 11 7 6 Tactical Retreats 15 | . . 3 . . 7 3 2 Traps | -11 -10 -10 -10 -9 -8 -8 -8 ------- Run | Yrd Mat Min Exi Min Mat Gar Mat Traps Triggered 18 | . 4 . . . . 13 1 Indirectly . | . . . . . . . . Trap Hack Attempts 22 | . . . . . . . 22 Triggered . | . . . . . . . . Disarmed . | . . . . . . . . Reprogrammed 8 | . 4 . . . 2 . 2 Reused 3 | . . . . . 3 . . Traps Reconfigurated 9 | . . . . . 9 . . Traps Extracted 10 | . . . . . 8 . 2 Installed 2 | . . . . . 2 . . Triggered 3 | . . . . . 3 . . Most Traps Carried 7 | . . . . . 6 6 7 Machines | -11 -10 -10 -10 -9 -8 -8 -8 ---------- Run | Yrd Mat Min Exi Min Mat Gar Mat Machines Disabled 11 | . 2 . . . 3 6 . Max in Single Turn 1 | . 1 . . . 1 1 . Garrison Relay 6 | . . . . . . 6 . Machines Repaired . | . . . . . . . . Machines Dismantled . | . . . . . . . . Machines Sabotaged . | . . . . . . . . Overloaded Fab Kills . | . . . . . . . . Hacking | -11 -10 -10 -10 -9 -8 -8 -8 --------- Run | Yrd Mat Min Exi Min Mat Gar Mat Machines Accessed 28 | . 6 1 2 . 14 3 2 Terminals 16 | . 4 . . . 8 3 1 Fabricators . | . . . . . . . . Repair Stations 4 | . 1 . . . 2 . 1 Recycling Units 2 | . 1 . . . 1 . . Scanalyzers 2 | . . . . . 2 . . Garrison Access 1 | . . . . . 1 . . Total Hacks 100 | . 23 1 5 . 58 5 8 Successful 68 | . 14 1 5 . 42 1 5 Failed 31 | . 8 . . . 16 4 3 Catastrophic 1 | . . . . . . . 1 Database Lockouts 1 | . 1 . . . . . . Manual 34 | . 10 . 1 . 21 . 2 Terminals 64 | . 19 . . . 36 5 4 Fabricators . | . . . . . . . . Repair Stations 14 | . 2 . . . 8 . 4 Recycling Units 4 | . 2 . . . 2 . . Scanalyzers 10 | . . . . . 10 . . Garrison Access 2 | . . . . . 2 . . Terminal Hacks 33 | . 10 1 5 . 14 1 2 Record 4 | . . . 4 . . . . Part Schematic 2 | . . . . . 2 . . Robot Schematic 1 | . 1 . . . . . . Robot Analysis 3 | . 3 . . . . . . Prototype ID Bank 3 | . 2 . . . 1 . . Open Door 2 | . . 1 . . . 1 . Level Access Points 1 | . . . . . . . 1 Branch Access Points 3 | . 1 . . . 1 . 1 Terminal Index 1 | . . . . . 1 . . Scanalyzer Index 1 | . . . . . 1 . . Unreport Threat 1 | . . . . . 1 . . Locate Traps 4 | . 2 . . . 2 . . Reprogram Traps 2 | . 1 . . . 1 . . Hauler Manifests 1 | . . . . . 1 . . Registered Components 1 | . . . . . 1 . . Zone Layout 2 | . . . . . 2 . . Derelict Proto ID Bank 1 | . . . 1 . . . . Fabricator Hacks . | . . . . . . . . Repair Station Hacks 11 | . 2 . . . 6 . 3 Scan Component 6 | . 1 . . . 3 . 2 Repair 5 | . 1 . . . 3 . 1 Recycling Unit Hacks 2 | . 1 . . . 1 . . Report Inventory 2 | . 1 . . . 1 . . Scanalyzer 10 | . . . . . 10 . . Insert Component 5 | . . . . . 5 . . Analyze 5 | . . . . . 5 . . Garrison Access Hacks 1 | . . . . . 1 . . Unlock Access 1 | . . . . . 1 . . Unauthorized Hacks 11 | . 1 . . . 10 . . Terminals 7 | . . . . . 7 . . Track 3 | . . . . . 3 . . Assimilate 3 | . . . . . 3 . . Botnet 1 | . . . . . 1 . . Fabricators . | . . . . . . . . Repair Stations 1 | . . . . . 1 . . Mechanics 1 | . . . . . 1 . . Recycling Units 2 | . 1 . . . 1 . . Mask 1 | . . . . . 1 . . Tunnel 1 | . 1 . . . . . . Scanalyzers . | . . . . . . . . Garrison Access 1 | . . . . . 1 . . Reprogram 1 | . . . . . 1 . . Data Cores Recovered . | . . . . . . . . Used . | . . . . . . . . Hacking Detections 23 | . 5 . . . 14 2 2 Full Trace Events 4 | . . . . . 1 2 1 Feedback Events . | . . . . . . . . Feedback Blocked . | . . . . . . . . Robot Schematics Acquired 1 | . 1 . . . . . . Robots Built . | . . . . . . . . Authchips . | . . . . . . . . Time . | . . . . . . . . Total Robot Build Rating . | . . . . . . . . Part Schematics Acquired 6 | . . . . . 6 . . Parts Built . | . . . . . . . . Authchips . | . . . . . . . . Time . | . . . . . . . . Total Part Build Rating . | . . . . . . . . Parts Repaired 5 | . 1 . . . 3 . 1 Time 166 | . 26 . . . 102 . 38 Parts Recycled . | . . . . . . . . Recycled Matter . | . . . . . . . . Retrieved Matter . | . . . . . . . . Retrieved Components . | . . . . . . . . Parts Scanalyzed 4 | . . . . . 4 . . Part Schematics Acquired 4 | . . . . . 4 . . Parts Damaged . | . . . . . . . . Bothacking | -11 -10 -10 -10 -9 -8 -8 -8 ------------ Run | Yrd Mat Min Exi Min Mat Gar Mat Used RIF Installer 1 | . . . . . . 1 . Robots Hacked 1 | . . . . . . . 1 Non-combat 1 | . . . . . . . 1 Combat . | . . . . . . . . Robot Hacks Applied 1 | . . . . . . . 1 ignore_repairs 1 | . . . . . . . 1 Relay Couplers Released 27 | . . . . . . 27 . Machine Destruction 27 | . . . . . . 27 . Fabnet Peak Effective % . | . . . . . . . . Robots Rewired 2 | . . . . . . 2 . Allies Hacked . | . . . . . . . . Hacks Repelled . | . . . . . . . . Allies | -11 -10 -10 -10 -9 -8 -8 -8 -------- Run | Yrd Mat Min Exi Min Mat Gar Mat Total Allies 5 | . . . . . 3 2 . Largest Group 2 | . . . . . 2 2 . Highest-Rated Group 56 | . . . . . 20 56 . Highest-Rated Ally 31 | . . . . . 10 31 . Total Orders . | . . . . . . . . Ally Attacks 17 | . . . . . . 17 . Total Damage 344 | . . . . . . 344 . Kills 5 | . . . . . . 5 . Allies Corrupted . | . . . . . . . . Allies Melted . | . . . . . . . . Intel | -11 -10 -10 -10 -9 -8 -8 -8 ------- Run | Yrd Mat Min Exi Min Mat Gar Mat Robot Analysis Total 3 | . 3 . . . . . . Derelict Logs Recovered 2 | . . . . 2 . . . Drone Launches . | . . . . . . . . Drone Recoveries . | . . . . . . . . Exploration | -11 -10 -10 -10 -9 -8 -8 -8 ------------- Run | Yrd Mat Min Exi Min Mat Gar Mat Turns Passed 7665 | 108 730 158 183 153 2581 2669 1083 Spaces Moved 5193 | 48 401 373 485 408 2254 934 290 Core 3 | 3 . . . . . . . Treads 2149 | 45 373 . . . 507 934 290 Legs . | . . . . . . . . Wheels 113 | . . . . . 113 . . Hover . | . . . . . . . . Flight 2928 | . 28 373 485 408 1634 . . Fastest Speed 29 | 50 37 37 37 37 29 240 243 Average Speed 110 | 154 151 37 37 37 72 241 243 Slowest Speed 325 | 160 160 37 37 37 240 325 325 Overloaded Moves . | . . . . . . . . Propulsion Burnouts . | . . . . . . . . Robots Hopped 23 | . . 8 . 1 14 . . Cave-ins Triggered . | . . . . . . . . Exploration Rate (%) 63 | 4 68 82 87 80 77 84 23 Regions Visited 7 Branch Regions 3 Pre-discovered Areas 3 | . 1 . 1 1 . . . Known Exits Taken 3 | . 1 . . 1 1 . . Unknown Exits Taken 3 | 1 . 1 1 . . . . Scrap Searched 1 | . . . . 1 . . . Spaces Dug 35 | . . . . . 19 16 . Terrain Destroyed 205 | . 8 . . . 109 58 30 Melee 14 | . . . . . 14 . . Projectile . | . . . . . . . . AOE 191 | . 8 . . . 95 58 30 Terrain Rammed . | . . . . . . . . Walls Destroyed . | . . . . . . . . Machines Disabled . | . . . . . . . . Actions | -11 -10 -10 -10 -9 -8 -8 -8 --------- Run | Yrd Mat Min Exi Min Mat Gar Mat Total 6593 | 66 491 386 490 409 3035 1157 559 Wait 771 | . 39 14 . 1 556 18 143 Move 5141 | 47 400 356 484 405 2227 932 290 Hop 21 | . . 8 . 1 12 . . Pick Up 68 | 5 8 4 2 1 34 9 5 Fast Attach 49 | 7 5 . . . 23 7 7 Attach 19 | . 2 . . . 13 4 . Detach 10 | . 1 . . . 9 . . Swap 85 | . 9 . . . 33 30 13 Drop 86 | . 7 4 4 1 31 22 17 Fire 210 | 7 20 . . . 23 101 59 Melee 80 | . . . . . 72 6 2 Ram . | . . . . . . . . Kick . | . . . . . . . . Crush 1 | . . . . . . . 1 Escape Stasis 20 | . . . . . . 20 . Rewire 8 | . . . . . . 8 . Trap 24 | . . . . . 2 . 22 Miscellaneous . | . . . . . . . . Route ------- -11/Scrapyard -10/Materials (discovered 4 exits: [*Mat x2] / *Min x2) -10/Mines (discovered 3 exits: [*Mat x2] / *Exi) -10/Exiles (discovered 2 exits: [*Min x2]) -9/Mines (discovered 2 exits: *Mat x2) -8/Materials (discovered 3 exits: *Fac x2 / Gar) -8/Garrison (discovered 3 exits: *Mat x3) -8/Materials (discovered 3 exits: Fac x3) History --------- Turn | Location | Event 2 | -11/Scrapyard | Met Revision 17 16 | -11/Scrapyard | Discovered new exit (range 15) 109 | -11/Scrapyard | Entered Materials 109 | -10/Materials | Discovered new exit (range 8) 186 | -10/Materials | Central database locked down 197 | -10/Materials | Discovered new exit (range 16) 322 | -10/Materials | Build established: Mutant 333 | -10/Materials | Identified exit to Mines 376 | -10/Materials | Discovered new exit (range 14) 631 | -10/Materials | Discovered new exit (range 16) 753 | -10/Materials | Repaired Flight Unit 839 | -10/Materials | Entered Mines 842 | -10/Mines | Met a Derelict who couldn't figure out how to use a Trap Extractor 876 | -10/Mines | Discovered new exit (range 6) 888 | -10/Mines | A weapon hastily lodged in a ceiling crevice suddenly fell to the ground 912 | -10/Mines | Discovered new exit (range 6) 915 | -10/Mines | Assembled infested the area 973 | -10/Mines | Found a hidden stash of uninstalled traps 996 | -10/Mines | Deemed a non-threat by the Exiles lab entrance 996 | -10/Mines | Discovered new exit (range 5) 997 | -10/Mines | Entered Exiles 1004 | -10/Exiles | Discovered new exit (range 15) 1008 | -10/Exiles | Met 8R-AWN 1014 | -10/Exiles | Met EX-HEX 1027 | -10/Exiles | Met EX-DEC 1059 | -10/Exiles | Visited The Gauntlet 1097 | -10/Exiles | Learned location of Zion (-6) 1123 | -10/Exiles | Met EX-BIN 1128 | -10/Exiles | Aligned with FarCom system 1128 | -10/Exiles | Given EX-Vault access code 1138 | -10/Exiles | Opened EX-Vault 1141 | -10/Exiles | Found Trap Reconfigurator 1150 | -10/Exiles | Warned to stay clear of 0b10 Research branches 1176 | -10/Exiles | Discovered new exit (range 10) 1180 | -10/Exiles | Left Exiles lab with Trap Reconfigurator 1180 | -10/Exiles | Entered Mines 1184 | -9/Mines | Met a Derelict bent on vengeance 1196 | -9/Mines | Learned location of Storage (-9) 1198 | -9/Mines | Discovered new exit (range 12) 1256 | -9/Mines | Identified exit to Materials 1333 | -9/Mines | Entered Materials 1333 | -8/Materials | Evolved 4 slots: Propulsion x1, Utility x3 1633 | -8/Materials | Destroyed 7 combat bots 1815 | -8/Materials | Lost 3 parts (1p1n1u) 2020 | -8/Materials | Discovered new exit (range 16) 2091 | -8/Materials | Build established: Hacker-Sprinter 2298 | -8/Materials | Identified exit to Garrison 2301 | -8/Materials | Lost 3 parts (2n1w) 2312 | -8/Materials | Discovered new exit (range 5) 2385 | -8/Materials | Repaired Imp. Utility Shielding 2905 | -8/Materials | Repaired Lgt. Treads 2983 | -8/Materials | Build established: Scavenger-Mutant 3233 | -8/Materials | Repaired Surge Thruster 3914 | -8/Materials | Entered Garrison 4102 | -8/Garrison | Triggered checkpoint 4243 | -8/Garrison | Garrison Relay disabled 4388 | -8/Garrison | Triggered checkpoint 4575 | -8/Garrison | Discovered new exit (range 13) 4680 | -8/Garrison | Triggered checkpoint 4728 | -8/Garrison | Garrison Relay disabled 4892 | -8/Garrison | Garrison Relay disabled 5123 | -8/Garrison | Installed Relay Interface Framework 5278 | -8/Garrison | Triggered checkpoint 5375 | -8/Garrison | Core integrity fell below 50% 5448 | -8/Garrison | Core integrity fell below 20% 5470 | -8/Garrison | Lost 8 parts (1p3n3u1w) 5746 | -8/Garrison | Discovered new exit (range 10) 5779 | -8/Garrison | Garrison Relay disabled 5874 | -8/Garrison | Triggered checkpoint 5877 | -8/Garrison | Garrison Relay disabled 6068 | -8/Garrison | Triggered checkpoint 6216 | -8/Garrison | Triggered checkpoint 6270 | -8/Garrison | Garrison Relay disabled 6340 | -8/Garrison | Discovered new exit (range 13) 6583 | -8/Garrison | Entered Materials 6708 | -8/Materials | Repaired Arm. Treads 6983 | -8/Materials | First assault squad dispatched 7121 | -8/Materials | Destroyed 7 combat bots 7272 | -8/Materials | Build established: Trapper-Mutant 7419 | -8/Materials | Identified exit to Factory 7666 | -8/Materials | Destroyed by G-47 Trooper with Particle Gun Last Messages --------------- 07631_ Slammed into K-01 Serf. 07641_ Acquired 48 matter. 07650_ G-47 Trooper suffers critical hit (Destroy). 07650_ Destroyed Aluminum Leg. 07657_ G-47 Trooper destroyed. 07657_ Destroyed Imp. Hover Unit. 07657_ W-25 Informer destroyed. 07657_ K-01 Serf destroyed. 07659_ Destroyed Med. Matter Pod. 07659_ K-01 Serf collects debris. 07662_ Critical hit (Burn: +27). 07662_ K-01 Serf collects debris. 07663_ Destroyed Particle Gun. 07663_ G-47 Trooper destroyed. 07663_ Lgt. Treads destroyed. 07663_ Destroyed Lgt. Treads. 07663_ K-01 Serf destroyed. 07663_ K-01 Serf collects debris. 07664_ Critical hit (Burn: +25). Map ----- +----------------------------------------------------+ | ????????????????????????# ######### #??? | | ????????????????????????# #??# ] # ! #### | | ????????????????????????### ###??# + ! | | ??????????????????????????# #????# # !!! [ | | ??????????????????????????# ###### ! # | | ??????????????????????#####+## # / + | | ??????????????????????# # # "############ | | ??????????????????????# # #| T#??????# | | ??????????????????????# """ / # "#??????# | | ??????????????????????# """ # # #??????# " | | ??????????????????????# """ # ######??????# " | | ?????????????########## # #???????????# " | | ?????????????# ##+##### #??????????###### | | ?????????????# """ | ## #???# #??????????# | | ?????????????# """ ## #???# #??????????# | | ?????????????# """ ]## ##### #??????????# | | ?????????????# # k #??????????# | | ?????????????# + #??????????# | | ?????????????# "Y" # + | | ?????????????# """ # k #####+############# | | ?????????????# # #???????? #???????# | | ?????????????########## k #??????! #???????#/ | | ?????????????# !! # #????/! /#???????###### | | ?????????????# !] # #?? /! #????????????? | | ?????????????# !] # =# #????????????? | | ?????????????# =#k=@%! " " #????????????? | | ?????????????#[ "R" ?????????????? | | ?????????????# ] """??????????????? | | ?????????????# % #######??????????????? | | ?????????????# g #####????????????????? | | ?????????????# #??????????? | | ?????????????###### #??????????? | | ????????????????? #??????????? | | ????????????????##### ###### #??????????? | | ???????????????????? ##??????? ##??????????? | | ????????????????????# # # ???????????????????????? | | ????????????????????####?"???????????????????????? | | ?????????????????????????"???????????????????????? | | ?????????????????????????????????????????????????? | | ?????????????????????????????????????????????????? | | ?????????????????????????????????????????????????? | | ?????????????????????????????????????????????????? | | ?????????????????????????????????????????????????? | | ?????????????????????????????????????????????????? | | ?????????????????????????????????????????????????? | | ?????????????????????????????????????????????????? | | ?????????????????????????????????????????????????? | | ?????????????????????????????????????????????????? | | ?????????????????????????????????????????????????? | | ?????????????????????????????????????????????????? | +----------------------------------------------------+ Best States ------------- Heat Dissipation 45 Energy Generation 16 Energy Capacity 290 Matter Stores 300 Matter Capacity 300 Sight Range 18 Robot Scan Range 15 Terrain Scan Density 10 Additional Mass Support 6 Armor Coverage 525 Core Shielding 20 Utility Shielding 66 Evasion (%) 72 Recoil Reduction 3 Salvage Targeting 1 Offensive Hacking 20 Trap Extractor Capacity 6 Item Schematics ----------------- Surge Thruster | -8/Materials | Scanalyzed Imp. Utility Shielding | -8/Materials | Scanalyzed Weight Redist. System | -8/Materials | Hacked Axe | -8/Materials | Hacked Imp. Trap Extractor | -8/Materials | Scanalyzed Reaction Control System | -8/Materials | Scanalyzed Robot Schematics ------------------ M-13 Machinist | -10/Materials | Hacked Fabricated ------------ Nothing Alien Tech Used ----------------- None Achievements -------------- None Challenges ------------ None Game ------ Seed CompositeSigixTube Manual? 0 Play Time 01:13:46 Cumulative 627.5 hours Start 2024.03.21 @ 01:37:33 End 2024.03.21 @ 02:49:35 Sessions 1 Manual Loads 0 Difficulty Rogue Special Mode None Game No. 242 Rogue 218 Adventurer 3 Explorer 21 Win Type - Total 14 Types 9/2/1/1/0/1/0/0/0 Lore% 89 Gallery% 96 Achievement% 83 Wizard Run 0 Options --------- Layout 2 ASCII 0 Keyboard 0 Movement Numpad Keybinds 0 Fullscreen 2 Font 24/Smallcaps Map View 50x44 Zoom Use 0% Tactical HUD 1 Map Filters NONE Filters NONE Steam 1 RUN: 61a21e60-605e-47a8-9e1e-ef5263723485